[Event "FIDE Women World-chT-KO 2021"]
[Site "Sitges"]
[Date "2021.09.30"]
[Round "1.2"]
[White "Vaishali R"]
[Black "Saduakassova, Dinara"]
[Result "1/2-1/2"]
[ECO "C77"]
[WhiteElo "2414"]
[BlackElo "2489"]
[Annotator "ChessBase"]
[PlyCount "100"]
[EventDate "2021.09.30"]
[EventType "team-tourn"]
[EventCountry "ESP"]
[SourceTitle "playchess.com"]
[Source "ChessBase"]
[SourceQuality "1"]
[WhiteTeam "India"]
[BlackTeam "Kazakhstan"]
[WhiteTeamCountry "IND"]
[BlackTeamCountry "KAZ"]
[TimeControl "2700+10"]

1. e4 {[%emt 0:00:18]} e5 {[%emt 0:00:01]} 2. Nf3 {[%emt 0:00:03]} Nc6 {
[%emt 0:00:01]} 3. Bb5 {[%emt 0:00:04]} a6 {[%emt 0:00:01]} 4. Ba4 {[%emt 0:00:
03]} Nf6 {[%emt 0:00:01]} 5. d3 {[%emt 0:00:03]} d6 {[%emt 0:00:01]} 6. c4 {
[%emt 0:00:07]} g6 {[%emt 0:00:01]} 7. Nc3 {[%emt 0:00:04]} Bg7 {[%emt 0:00:03]
} 8. Nd5 {[%emt 0:00:05]} h6 {[%emt 0:00:02]} 9. Nb4 {[%emt 0:00:17]} Bd7 {
[%emt 0:00:01]} 10. Nxc6 {[%emt 0:00:04]} bxc6 {[%emt 0:00:01]} 11. c5 {
[%emt 0:00:07]} O-O {[%emt 0:00:24]} 12. O-O {[%emt 0:00:16]} Qe7 {[%emt 0:00:
01]} 13. Re1 {[%emt 0:04:46]} Rfd8 {[%emt 0:01:32]} 14. Qc2 {[%emt 0:04:52]}
Rab8 {[%emt 0:03:33]} 15. Be3 {[%emt 0:06:34]} Nh5 {[%emt 0:09:26]} 16. Rab1 {
[%emt 0:05:52]} f5 {[%emt 0:04:14]} 17. exf5 {[%emt 0:06:25]} gxf5 {[%emt 0:02:
59]} 18. cxd6 {[%emt 0:01:03]} cxd6 {[%emt 0:00:55]} 19. Bxc6 {[%emt 0:00:17]}
Rdc8 {[%emt 0:04:09]} 20. Bd5+ {[%emt 0:00:07]} Kh7 {[%emt 0:00:01]} 21. Qe2 {
[%emt 0:07:13]} Nf6 {[%emt 0:00:30]} 22. Bc4 {[%emt 0:00:03]} Bb5 {[%emt 0:01:
04]} 23. Nh4 {[%emt 0:02:26]} Qd7 {[%emt 0:00:27]} 24. f4 {[%emt 0:02:46]} Ng4
{[%emt 0:01:37]} 25. Bxb5 {[%emt 0:00:24]} Rxb5 {[%emt 0:00:33]} 26. h3 {
[%emt 0:00:19]} Nxe3 {[%emt 0:00:54]} 27. Qxe3 {[%emt 0:00:01]} Rc2 {[%emt 0:
01:58]} 28. Rf1 {[%emt 0:01:00]} Bf6 {[%emt 0:01:40]} 29. Qg3 {[%emt 0:00:42]}
Bxh4 {[%emt 0:05:51]} 30. Qxh4 {[%emt 0:00:01]} Rbxb2 {[%emt 0:00:48]} 31. Rxb2
{[%emt 0:00:03]} Rxb2 32. fxe5 {[%emt 0:00:49]} Qg7 {[%emt 0:01:15]} 33. Rf2 {
[%emt 0:00:18]} Rb1+ {[%emt 0:00:39]} 34. Kh2 {[%emt 0:00:41]} Qxe5+ {[%emt 0:
00:15]} 35. Qf4 {[%emt 0:00:15]} Kg6 {[%emt 0:00:14]} 36. g4 {[%emt 0:01:25]}
fxg4 {[%emt 0:01:08]} 37. hxg4 {[%emt 0:00:12]} Rd1 {[%emt 0:00:19]} 38. Qxe5 {
[%emt 0:00:25]} dxe5 {[%emt 0:00:02]} 39. Rf5 {[%emt 0:00:13]} Rd2+ {[%emt 0:
00:37]} 40. Kg1 {[%emt 0:00:01]} Rxa2 {[%emt 0:01:29]} 41. Rxe5 {[%emt 0:00:03]
} a5 {[%emt 0:00:01]} 42. d4 {[%emt 0:00:12]} a4 {[%emt 0:00:01]} 43. Ra5 {
[%emt 0:00:34]} a3 {[%emt 0:00:18]} 44. Kf1 {[%emt 0:00:07]} Kf6 {[%emt 0:00:
12]} 45. Ke1 {[%emt 0:00:22]} Ke6 {[%emt 0:00:26]} 46. Kd1 {[%emt 0:00:04]} Kd6
{[%emt 0:00:09]} 47. Kc1 {[%emt 0:00:04]} Rg2 {[%emt 0:00:06]} 48. Rxa3 {
[%emt 0:00:06]} Kd5 {[%emt 0:00:04]} 49. Rh3 {[%emt 0:00:04]} Rxg4 {[%emt 0:00:
03]} 50. Rxh6 {[%emt 0:00:01]} Kxd4 {[%emt 0:00:02]} 1/2-1/2

[Event "FIDE Women World-chT-KO 2021"]
[Site "Sitges"]
[Date "2021.09.30"]
[Round "1.2"]
[White "Sargsyan, Anna M."]
[Black "Osmak, Iulija"]
[Result "0-1"]
[ECO "E17"]
[WhiteElo "2402"]
[BlackElo "2302"]
[Annotator "ChessBase"]
[PlyCount "122"]
[EventDate "2021.09.30"]
[EventType "team-tourn"]
[EventCountry "ESP"]
[SourceTitle "playchess.com"]
[Source "ChessBase"]
[SourceQuality "1"]
[WhiteTeam "Armenia"]
[WhiteTeamCountry "ARM"]
[TimeControl "2700+10"]

1. d4 {[%emt 0:00:03]} Nf6 {[%emt 0:00:01]} 2. c4 {[%emt 0:00:01]} e6 {[%emt 0:
00:01]} 3. Nf3 {[%emt 0:00:02]} b6 {[%emt 0:00:02]} 4. g3 {[%emt 0:00:03]} Bb7
{[%emt 0:00:01]} 5. Bg2 {[%emt 0:00:01]} Be7 {[%emt 0:00:01]} 6. d5 {[%emt 0:
00:21]} exd5 {[%emt 0:00:54]} 7. Nh4 {[%emt 0:00:03]} c6 {[%emt 0:00:32]} 8.
cxd5 {[%emt 0:00:02]} Nxd5 {[%emt 0:00:12]} 9. Nf5 {[%emt 0:00:02]} O-O {
[%emt 0:01:27]} 10. O-O {[%emt 0:00:04]} Nc7 {[%emt 0:00:25]} 11. e4 {[%emt 0:
00:06]} d5 {[%emt 0:00:10]} 12. Nc3 {[%emt 0:00:14]} Bf6 13. exd5 {[%emt 0:01:
30]} cxd5 {[%emt 0:00:34]} 14. Bf4 {[%emt 0:00:23]} Nba6 {[%emt 0:00:07]} 15.
Rc1 {[%emt 0:03:25]} Qd7 {[%emt 0:04:34]} 16. Nd6 {[%emt 0:02:27]} Bc6 {
[%emt 0:00:25]} 17. Nxd5 {[%emt 0:00:04]} Bxd5 {[%emt 0:00:24]} 18. Bxd5 {
[%emt 0:00:05]} Nxd5 {[%emt 0:00:28]} 19. Qxd5 {[%emt 0:00:02]} Bxb2 {[%emt 0:
00:47]} 20. Rcd1 {[%emt 0:00:08]} Nc5 {[%emt 0:01:37]} 21. Rfe1 {[%emt 0:00:59]
} Bc3 {[%emt 0:03:50]} 22. Re3 {[%emt 0:02:18]} Bf6 {[%emt 0:00:45]} 23. Qh5 {
[%emt 0:00:16]} Rad8 {[%emt 0:00:36]} 24. Ree1 {[%emt 0:02:17]} Qc6 {[%emt 0:
01:21]} 25. Be5 {[%emt 0:02:43]} g6 {[%emt 0:05:18]} 26. Qe2 {[%emt 0:02:38]}
Bxe5 {[%emt 0:00:04]} 27. Qxe5 {[%emt 0:00:04]} Qf3 28. Rf1 {[%emt 0:05:57]} f6
{[%emt 0:02:58]} 29. Qd4 {[%emt 0:00:27]} Rd7 {[%emt 0:01:20]} 30. Qc4+ {
[%emt 0:00:02]} Kg7 {[%emt 0:00:52]} 31. Rd4 {[%emt 0:02:49]} Re7 {[%emt 0:01:
21]} 32. a4 {[%emt 0:00:57]} Qb3 {[%emt 0:01:33]} 33. Qxb3 {[%emt 0:00:01]}
Nxb3 {[%emt 0:00:01]} 34. Rb4 {[%emt 0:00:07]} Nc5 {[%emt 0:01:50]} 35. a5 {
[%emt 0:00:24]} Rd8 {[%emt 0:01:44]} 36. Nb5 {[%emt 0:02:13]} a6 {[%emt 0:01:
20]} 37. Nd4 {[%emt 0:01:12]} Nd3 {[%emt 0:00:47]} 38. Nc6 {[%emt 0:02:03]}
Nxb4 {[%emt 0:00:07]} 39. Nxd8 {[%emt 0:00:02]} bxa5 {[%emt 0:01:38]} 40. Rd1 {
[%emt 0:00:07]} Kf8 {[%emt 0:03:35]} 41. Rd6 {[%emt 0:00:37]} Ke8 {[%emt 0:00:
54]} 42. Nc6 {[%emt 0:00:23]} Nxc6 {[%emt 0:01:03]} 43. Rxc6 {[%emt 0:00:18]}
Ra7 {[%emt 0:01:09]} 44. Rxf6 {[%emt 0:00:03]} Ke7 {[%emt 0:00:05]} 45. Rc6 {
[%emt 0:00:05]} Kd7 {[%emt 0:00:28]} 46. Rc5 {[%emt 0:00:30]} a4 {[%emt 0:00:
19]} 47. Ra5 {[%emt 0:00:01]} Kc6 {[%emt 0:00:06]} 48. Rxa4 {[%emt 0:00:03]}
Kb5 {[%emt 0:00:07]} 49. Ra1 {[%emt 0:00:14]} a5 {[%emt 0:00:03]} 50. Kf1 {
[%emt 0:00:28]} Kc4 {[%emt 0:00:10]} 51. Ke2 {[%emt 0:00:05]} Kc3 {[%emt 0:00:
05]} 52. Ra3+ {[%emt 0:00:34]} Kb2 {[%emt 0:00:13]} 53. Ra4 {[%emt 0:00:18]}
Kb3 {[%emt 0:00:02]} 54. Ra1 {[%emt 0:00:51]} a4 {[%emt 0:00:03]} 55. Rb1+ {
[%emt 0:00:23]} Kc2 {[%emt 0:00:58]} 56. Rb8 {[%emt 0:00:12]} a3 {[%emt 0:00:
25]} 57. Rc8+ {[%emt 0:00:46]} Kb3 {[%emt 0:00:02]} 58. Rb8+ {[%emt 0:00:16]}
Ka4 {[%emt 0:00:11]} 59. Rb1 {[%emt 0:00:21]} a2 {[%emt 0:00:02]} 60. Ra1 {
[%emt 0:00:03]} Kb3 {[%emt 0:00:04]} 61. f4 {[%emt 0:00:04]} Kb2 {[%emt 0:00:
17]} 0-1

[Event "FIDE Women World-chT-KO 2021"]
[Site "Sitges"]
[Date "2021.09.30"]
[Round "1.2"]
[White "Kamalidenova, Meruert"]
[Black "Tania, Sachdev"]
[Result "1-0"]
[ECO "C88"]
[WhiteElo "2339"]
[BlackElo "2392"]
[Annotator "ChessBase"]
[PlyCount "71"]
[EventDate "2021.09.30"]
[EventType "team-tourn"]
[EventCountry "ESP"]
[SourceTitle "playchess.com"]
[Source "ChessBase"]
[SourceQuality "1"]
[WhiteTeam "Kazakhstan"]
[BlackTeam "India"]
[WhiteTeamCountry "KAZ"]
[BlackTeamCountry "IND"]
[TimeControl "2700+10"]

1. e4 {[%emt 0:00:04]} e5 {[%emt 0:00:01]} 2. Nf3 {[%emt 0:00:04]} Nc6 {
[%emt 0:00:02]} 3. Bb5 {[%emt 0:00:04]} a6 {[%emt 0:00:01]} 4. Ba4 {[%emt 0:00:
04]} Nf6 {[%emt 0:00:04]} 5. O-O {[%emt 0:00:03]} Be7 {[%emt 0:00:03]} 6. Re1 {
[%emt 0:00:08]} b5 {[%emt 0:00:02]} 7. Bb3 {[%emt 0:00:03]} O-O {[%emt 0:00:09]
} 8. a4 {[%emt 0:00:13]} b4 {[%emt 0:00:05]} 9. d3 {[%emt 0:00:44]} d6 {
[%emt 0:00:30]} 10. Nbd2 {[%emt 0:00:14]} Na5 {[%emt 0:02:09]} 11. h3 {[%emt 0:
02:15]} Nxb3 {[%emt 0:00:50]} 12. Nxb3 {[%emt 0:00:07]} c5 {[%emt 0:01:03]} 13.
a5 {[%emt 0:00:52]} Rb8 {[%emt 0:01:00]} 14. Nbd2 {[%emt 0:01:32]} Be6 {
[%emt 0:02:38]} 15. c3 {[%emt 0:01:02]} bxc3 {[%emt 0:03:46]} 16. bxc3 {
[%emt 0:00:06]} Rb5 {[%emt 0:00:20]} 17. Qa4 {[%emt 0:01:42]} Nh5 {[%emt 0:02:
57]} 18. d4 {[%emt 0:03:05]} cxd4 {[%emt 0:02:30]} 19. cxd4 {[%emt 0:01:14]}
Nf4 {[%emt 0:00:03]} 20. d5 {[%emt 0:04:30]} Bd7 {[%emt 0:01:10]} 21. Qa2 {
[%emt 0:00:26]} Qc8 {[%emt 0:05:23]} 22. Nc4 {[%emt 0:01:51]} Nxg2 {[%emt 0:12:
47]} 23. Kxg2 {[%emt 0:00:59]} Bxh3+ {[%emt 0:00:02]} 24. Kh2 {[%emt 0:00:32]}
Qg4 {[%emt 0:00:18]} 25. Rg1 {[%emt 0:00:22]} Qh5 {[%emt 0:01:56]} 26. Rg3 {
[%emt 0:01:12]} Bf5+ {[%emt 0:01:12]} 27. Kg1 {[%emt 0:01:35]} Bxe4 {[%emt 0:
00:05]} 28. Qe2 {[%emt 0:01:06]} f5 {[%emt 0:03:57]} 29. Ncd2 {[%emt 0:02:24]}
Bxd5 {[%emt 0:00:11]} 30. Ra4 {[%emt 0:02:16]} Rc5 {[%emt 0:00:45]} 31. Qd1 {
[%emt 0:04:21]} e4 {[%emt 0:01:46]} 32. Bb2 {[%emt 0:00:42]} Bf6 {[%emt 0:01:
09]} 33. Qa1 {[%emt 0:03:29]} exf3 {[%emt 0:00:16]} 34. Bxf6 {[%emt 0:00:11]}
Rxf6 {[%emt 0:01:06]} 35. Qxf6 {[%emt 0:00:42]} Rc1+ {[%emt 0:00:17]} 36. Nf1 {
[%emt 0:00:02]} 1-0

[Event "FIDE Women World-chT-KO 2021"]
[Site "Sitges"]
[Date "2021.10.01"]
[Round "2.1"]
[White "Goryachkina, Aleksandra"]
[Black "Muzychuk, Anna"]
[Result "1/2-1/2"]
[ECO "D47"]
[WhiteElo "2608"]
[BlackElo "2534"]
[Annotator "ChessBase"]
[PlyCount "98"]
[EventDate "2021.09.30"]
[EventType "team-tourn"]
[EventCountry "ESP"]
[SourceTitle "playchess.com"]
[Source "ChessBase"]
[SourceQuality "1"]
[WhiteTeam "Russia"]
[BlackTeam "Ukraine"]
[WhiteTeamCountry "RUS"]
[BlackTeamCountry "UKR"]
[TimeControl "2700+10"]

1. d4 {[%emt 0:00:05]} d5 {[%emt 0:00:03]} 2. c4 {[%emt 0:00:04]} c6 {[%emt 0:
00:01]} 3. Nf3 {[%emt 0:00:03]} Nf6 {[%emt 0:00:02]} 4. Nc3 {[%emt 0:00:03]} e6
{[%emt 0:00:04]} 5. e3 {[%emt 0:00:03]} Nbd7 {[%emt 0:00:05]} 6. Bd3 {[%emt 0:
00:08]} dxc4 {[%emt 0:01:01]} 7. Bxc4 {[%emt 0:00:05]} b5 {[%emt 0:00:24]} 8.
Bd3 {[%emt 0:00:05]} Bd6 {[%emt 0:00:18]} 9. O-O {[%emt 0:00:27]} O-O {[%emt 0:
00:20]} 10. Qc2 {[%emt 0:00:35]} Bb7 {[%emt 0:01:25]} 11. e4 {[%emt 0:00:16]}
e5 {[%emt 0:00:11]} 12. dxe5 {[%emt 0:00:39]} Nxe5 {[%emt 0:00:02]} 13. Nxe5 {
[%emt 0:00:02]} Bxe5 {[%emt 0:00:01]} 14. h3 {[%emt 0:00:07]} Re8 {[%emt 0:05:
03]} 15. Be3 {[%emt 0:00:53]} Bd4 {[%emt 0:02:59]} 16. Bxd4 {[%emt 0:04:19]}
Qxd4 {[%emt 0:00:02]} 17. Rad1 {[%emt 0:00:07]} Qc5 {[%emt 0:08:53]} 18. Rfe1 {
[%emt 0:01:22]} a5 {[%emt 0:05:12]} 19. Re3 {[%emt 0:03:42]} b4 {[%emt 0:04:25]
} 20. Na4 {[%emt 0:14:15]} Qxc2 {[%emt 0:00:11]} 21. Bxc2 {[%emt 0:00:01]} Ba6
{[%emt 0:04:44]} 22. Nc5 {[%emt 0:00:47]} Bc4 {[%emt 0:00:41]} 23. Bb3 {
[%emt 0:01:23]} Bxb3 {[%emt 0:00:17]} 24. axb3 {[%emt 0:00:11]} Re5 {[%emt 0:
03:59]} 25. Rc1 {[%emt 0:00:39]} g5 {[%emt 0:01:22]} 26. Rc4 {[%emt 0:01:46]}
Rd8 {[%emt 0:01:51]} 27. Nd3 {[%emt 0:00:38]} Rxe4 {[%emt 0:00:16]} 28. Rcxe4 {
[%emt 0:06:27]} Nxe4 {[%emt 0:00:02]} 29. Nxb4 {[%emt 0:01:33]} Rd1+ {[%emt 0:
01:36]} 30. Kh2 {[%emt 0:00:02]} axb4 {[%emt 0:01:26]} 31. Rxe4 {[%emt 0:00:03]
} Rd2 {[%emt 0:00:02]} 32. f3 {[%emt 0:01:21]} c5 {[%emt 0:00:18]} 33. Re5 {
[%emt 0:01:20]} h6 {[%emt 0:00:03]} 34. Rxc5 {[%emt 0:00:24]} Rxb2 {[%emt 0:00:
01]} 35. h4 {[%emt 0:01:26]} gxh4 {[%emt 0:00:20]} 36. Kh3 {[%emt 0:00:01]} Kg7
{[%emt 0:00:26]} 37. Rc6 {[%emt 0:00:18]} Rxb3 {[%emt 0:00:13]} 38. Rb6 {
[%emt 0:00:08]} Rb2 {[%emt 0:00:36]} 39. Kxh4 {[%emt 0:00:03]} Rxg2 {[%emt 0:
00:26]} 40. Rxb4 {[%emt 0:00:03]} Kg6 {[%emt 0:00:13]} 41. Kh3 {[%emt 0:00:13]}
Rg1 {[%emt 0:00:05]} 42. Kh2 {[%emt 0:00:12]} Rg5 {[%emt 0:00:04]} 43. Kh3 {
[%emt 0:00:15]} f6 {[%emt 0:00:21]} 44. Ra4 {[%emt 0:00:12]} Rc5 {[%emt 0:00:
29]} 45. Kg3 {[%emt 0:00:04]} h5 {[%emt 0:00:12]} 46. Rb4 {[%emt 0:00:14]} Kg5
{[%emt 0:00:07]} 47. Ra4 {[%emt 0:00:09]} Rc3 {[%emt 0:00:08]} 48. Rb4 {
[%emt 0:00:29]} f5 {[%emt 0:00:44]} 49. Ra4 {[%emt 0:00:18]} Rb3 {[%emt 0:00:
19]} 1/2-1/2

[Event "FIDE Women World-chT-KO 2021"]
[Site "Sitges"]
[Date "2021.10.01"]
[Round "2.1"]
[White "Lagno, Kateryna"]
[Black "Ushenina, Anna"]
[Result "1/2-1/2"]
[ECO "C42"]
[WhiteElo "2550"]
[BlackElo "2428"]
[Annotator "ChessBase"]
[PlyCount "61"]
[EventDate "2021.09.30"]
[EventType "team-tourn"]
[EventCountry "ESP"]
[SourceTitle "playchess.com"]
[Source "ChessBase"]
[SourceQuality "1"]
[WhiteTeam "Russia"]
[BlackTeam "Ukraine"]
[WhiteTeamCountry "RUS"]
[BlackTeamCountry "UKR"]
[TimeControl "2700+10"]

1. e4 {[%emt 0:00:02]} e5 {[%emt 0:00:06]} 2. Nf3 {[%emt 0:00:04]} Nf6 {
[%emt 0:00:07]} 3. Nxe5 {[%emt 0:00:04]} d6 {[%emt 0:00:03]} 4. Nf3 {[%emt 0:
00:02]} Nxe4 {[%emt 0:00:06]} 5. d4 {[%emt 0:00:04]} d5 {[%emt 0:00:07]} 6. Bd3
{[%emt 0:00:03]} Nc6 {[%emt 0:00:08]} 7. O-O {[%emt 0:00:10]} Be7 {[%emt 0:00:
02]} 8. Nbd2 {[%emt 0:00:52]} Nxd2 {[%emt 0:01:46]} 9. Bxd2 {[%emt 0:00:14]}
Bg4 {[%emt 0:00:10]} 10. c3 {[%emt 0:00:18]} O-O {[%emt 0:04:10]} 11. h3 {
[%emt 0:00:06]} Bh5 {[%emt 0:00:27]} 12. g3 {[%emt 0:00:24]} Qd7 {[%emt 0:00:
45]} 13. Kg2 {[%emt 0:00:08]} Bg6 {[%emt 0:02:58]} 14. Bxg6 {[%emt 0:00:22]}
hxg6 {[%emt 0:01:18]} 15. Bf4 {[%emt 0:02:16]} Bd6 {[%emt 0:00:38]} 16. Qd2 {
[%emt 0:00:04]} Rae8 {[%emt 0:01:48]} 17. Rfe1 {[%emt 0:00:58]} Bxf4 {[%emt 0:
08:02]} 18. Qxf4 {[%emt 0:00:04]} f6 {[%emt 0:00:16]} 19. h4 {[%emt 0:08:50]}
Nd8 {[%emt 0:02:59]} 20. Rxe8 {[%emt 0:02:50]} Rxe8 {[%emt 0:00:02]} 21. Re1 {
[%emt 0:00:01]} Rxe1 {[%emt 0:00:36]} 22. Nxe1 {[%emt 0:00:01]} Nf7 {[%emt 0:
01:04]} 23. Nd3 {[%emt 0:00:38]} Nd6 {[%emt 0:02:06]} 24. Nc5 {[%emt 0:03:59]}
Qe7 {[%emt 0:02:00]} 25. Qg4 {[%emt 0:01:05]} Kf7 {[%emt 0:00:26]} 26. Qf3 {
[%emt 0:05:39]} c6 {[%emt 0:00:15]} 27. Nd3 {[%emt 0:00:05]} Kg8 {[%emt 0:03:
53]} 28. Nf4 {[%emt 0:07:55]} Kf7 {[%emt 0:00:35]} 29. Nd3 {[%emt 0:01:43]} Kg8
{[%emt 0:00:41]} 30. Nf4 {[%emt 0:01:02]} Kf7 {[%emt 0:00:06]} 31. Nd3 {
[%emt 0:01:39]} 1/2-1/2

[Event "FIDE Women World-chT-KO 2021"]
[Site "Sitges"]
[Date "2021.10.01"]
[Round "2.1"]
[White "Muzychuk, Mariya"]
[Black "Kosteniuk, Alexandra"]
[Result "1/2-1/2"]
[ECO "C54"]
[WhiteElo "2540"]
[BlackElo "2526"]
[Annotator "ChessBase"]
[PlyCount "113"]
[EventDate "2021.09.30"]
[EventType "team-tourn"]
[EventCountry "ESP"]
[SourceTitle "playchess.com"]
[Source "ChessBase"]
[SourceQuality "1"]
[WhiteTeam "Ukraine"]
[BlackTeam "Russia"]
[WhiteTeamCountry "UKR"]
[BlackTeamCountry "RUS"]
[TimeControl "2700+10"]

1. e4 {[%emt 0:00:03]} e5 {[%emt 0:00:04]} 2. Nf3 {[%emt 0:00:01]} Nc6 {
[%emt 0:00:04]} 3. Bc4 {[%emt 0:00:07]} Bc5 {[%emt 0:00:04]} 4. c3 {[%emt 0:00:
05]} Nf6 {[%emt 0:00:05]} 5. d4 {[%emt 0:00:03]} exd4 {[%emt 0:00:05]} 6. e5 {
[%emt 0:00:02]} d5 {[%emt 0:00:05]} 7. Bb5 {[%emt 0:00:02]} Ne4 {[%emt 0:00:04]
} 8. cxd4 {[%emt 0:00:02]} Bb6 {[%emt 0:00:06]} 9. Nc3 {[%emt 0:00:09]} O-O {
[%emt 0:00:24]} 10. Be3 {[%emt 0:00:03]} f5 {[%emt 0:00:03]} 11. exf6 {[%emt 0:
00:52]} Rxf6 {[%emt 0:00:05]} 12. Rc1 {[%emt 0:00:23]} Ne7 {[%emt 0:04:45]} 13.
Ne5 {[%emt 0:02:13]} Nxc3 {[%emt 0:06:52]} 14. bxc3 {[%emt 0:00:03]} Qd6 {
[%emt 0:00:28]} 15. O-O {[%emt 0:01:13]} c5 {[%emt 0:04:25]} 16. c4 {[%emt 0:
06:42]} a6 {[%emt 0:03:00]} 17. Ba4 {[%emt 0:02:18]} cxd4 {[%emt 0:00:07]} 18.
Bxd4 {[%emt 0:00:28]} Bxd4 {[%emt 0:00:23]} 19. Qxd4 {[%emt 0:00:28]} dxc4 {
[%emt 0:03:34]} 20. Qxd6 {[%emt 0:02:38]} Rxd6 {[%emt 0:00:01]} 21. Nxc4 {
[%emt 0:00:01]} Rf6 {[%emt 0:00:36]} 22. Rfe1 {[%emt 0:00:44]} Kf8 {[%emt 0:00:
28]} 23. Ne5 {[%emt 0:00:37]} Be6 {[%emt 0:07:33]} 24. Bb3 {[%emt 0:04:33]} Rc8
{[%emt 0:07:47]} 25. Bxe6 {[%emt 0:09:00]} Rxe6 {[%emt 0:00:05]} 26. Rxc8+ {
[%emt 0:00:37]} Nxc8 {[%emt 0:00:01]} 27. Nd7+ {[%emt 0:00:04]} Ke7 {[%emt 0:
00:07]} 28. Rxe6+ {[%emt 0:00:03]} Kxe6 {[%emt 0:00:01]} 29. Nc5+ {[%emt 0:00:
07]} Kd5 {[%emt 0:00:03]} 30. Nxb7 {[%emt 0:00:03]} Na7 {[%emt 0:00:03]} 31. a4
{[%emt 0:05:19]} Nc8 {[%emt 0:00:02]} 32. f4 {[%emt 0:01:29]} Nb6 {[%emt 0:00:
05]} 33. g4 {[%emt 0:00:41]} Nxa4 {[%emt 0:00:14]} 34. Kf2 {[%emt 0:00:07]} Nc5
{[%emt 0:02:21]} 35. Na5 {[%emt 0:00:38]} Ke4 {[%emt 0:00:47]} 36. Kg3 {
[%emt 0:01:05]} g6 {[%emt 0:00:14]} 37. h4 {[%emt 0:03:50]} Ke3 {[%emt 0:01:46]
} 38. Nc4+ {[%emt 0:02:17]} Kd4 {[%emt 0:00:02]} 39. Na5 {[%emt 0:00:43]} Ne4+
{[%emt 0:00:02]} 40. Kf3 {[%emt 0:00:51]} Nd2+ {[%emt 0:00:03]} 41. Ke2 {
[%emt 0:00:06]} Nc4 {[%emt 0:00:02]} 42. Nb3+ {[%emt 0:00:06]} Ke4 {[%emt 0:02:
28]} 43. f5 {[%emt 0:00:13]} gxf5 {[%emt 0:00:01]} 44. Nc5+ {[%emt 0:00:09]}
Kd5 {[%emt 0:00:14]} 45. Nxa6 {[%emt 0:00:03]} fxg4 {[%emt 0:00:01]} 46. Kf2 {
[%emt 0:00:04]} h5 {[%emt 0:00:24]} 47. Nc7+ {[%emt 0:00:11]} Ke5 {[%emt 0:00:
07]} 48. Ne8 {[%emt 0:00:14]} Kf5 {[%emt 0:01:53]} 49. Ng7+ {[%emt 0:00:11]}
Kg6 {[%emt 0:00:01]} 50. Ne6 {[%emt 0:00:01]} Nd6 {[%emt 0:00:01]} 51. Nf4+ {
[%emt 0:00:47]} Kh6 {[%emt 0:00:01]} 52. Ng2 {[%emt 0:00:19]} Nf5 {[%emt 0:00:
04]} 53. Ke2 {[%emt 0:00:04]} Nd4+ {[%emt 0:00:26]} 54. Ke3 {[%emt 0:00:10]}
Nf3 {[%emt 0:00:25]} 55. Ke4 {[%emt 0:00:12]} Nxh4 {[%emt 0:00:29]} 56. Nxh4 {
[%emt 0:00:06]} Kg5 {[%emt 0:00:01]} 57. Nf3+ {[%emt 0:00:09]} 1/2-1/2

[Event "FIDE Women World-chT-KO 2021"]
[Site "Sitges"]
[Date "2021.10.01"]
[Round "2.1"]
[White "Dzagnidze, Nana"]
[Black "Harika, Dronavalli"]
[Result "1/2-1/2"]
[ECO "A05"]
[WhiteElo "2525"]
[BlackElo "2511"]
[Annotator "ChessBase"]
[PlyCount "27"]
[EventDate "2021.09.30"]
[EventType "team-tourn"]
[EventCountry "ESP"]
[SourceTitle "playchess.com"]
[Source "ChessBase"]
[SourceQuality "1"]
[WhiteTeam "Georgia"]
[BlackTeam "India"]
[WhiteTeamCountry "GEO"]
[BlackTeamCountry "IND"]
[TimeControl "2700+10"]

1. Nf3 {[%emt 0:00:04]} Nf6 {[%emt 0:00:12]} 2. c4 {[%emt 0:00:15]} g6 {
[%emt 0:00:24]} 3. g3 {[%emt 0:00:23]} Bg7 {[%emt 0:00:30]} 4. Bg2 {[%emt 0:00:
04]} c6 {[%emt 0:01:12]} 5. O-O {[%emt 0:07:04]} d5 {[%emt 0:01:04]} 6. cxd5 {
[%emt 0:00:54]} cxd5 {[%emt 0:00:03]} 7. Nc3 {[%emt 0:00:10]} O-O {[%emt 0:00:
27]} 8. d4 {[%emt 0:01:13]} Ne4 {[%emt 0:00:39]} 9. Qb3 {[%emt 0:00:47]} Nc6 {
[%emt 0:00:49]} 10. Rd1 {[%emt 0:00:19]} Na5 {[%emt 0:01:23]} 11. Qb4 {[%emt 0:
01:09]} Nc6 {[%emt 0:00:23]} 12. Qb3 {[%emt 0:00:29]} Na5 {[%emt 0:00:03]} 13.
Qb4 {[%emt 0:00:03]} Nc6 {[%emt 0:00:03]} 14. Qb3 {[%emt 0:00:01]} 1/2-1/2